Cogmind - Beta 16 @@@ ROGUE MODE // 2026.01.11 @ 17:42:22 Player: Cube_41 Result: Destroyed by as-69566 with Assembled Heavy Rifle Performance ------------- Evolutions (0) 0 Regions Visited (2) 400 Robots Destroyed (16) 80 Value Destroyed (327) 327 Prototype IDs (2) 40 Alien Tech Used (0) 0 Bonus (0) 0 TOTAL SCORE: 847 Bonus ------- None Cogmind --------- Core Integrity 0/250 Matter 292/300 Energy 100/100 System Corruption 1% Temperature Cool (0) Movement Rolling (80) Location -10/Mines Parts ------- > --- POWER (1) -------- (None) > --- PROPULSION (2) --- Wheel > --- UTILITY (2) ------ Improved Heat Sink Small Storage Unit > --- WEAPON (2) ------- EM Pulse Gun Assault Rifle > --- INVENTORY (8) ---- Ion Engine Seismic Detector Hacking Suite Medium Laser Medium Laser Peak State ------------ > --- POWER ------------ Ion Engine > --- PROPULSION ------- Hover Unit Hover Unit > --- UTILITY ---------- Improved Heat Sink Small Storage Unit > --- WEAPON ----------- EM Pulse Gun Particle Gun > --- INVENTORY -------- Ion Engine Ion Engine Seismic Detector Hacking Suite Medium Laser Medium Laser Assault Rifle Grenade Launcher [Rating: 11] Favorites ----------- Power Ion Engine Engine Ion Engine Propulsion Aluminum Leg Leg Aluminum Leg Wheel Wheel Hover Unit Hover Unit Utility Small Storage Unit Device Improved Heat Sink Storage Small Storage Unit Weapon EM Pulse Gun Energy Gun EM Pulse Gun Ballistic Gun Assault Rifle Launcher Grenade Launcher Build | -11 -10 -10 ------- Run | Yrd Mat Min Slots Evolved . | . . . Power . | . . . Propulsion . | . . . Utility . | . . . Weapon . | . . . Parts Attached 14 | 7 6 1 Power 2 | 1 1 . Engine 2 | 1 1 . Core . | . . . Reactor . | . . . Propulsion 5 | 2 2 1 Treads . | . . . Leg 2 | 2 . . Wheel 1 | . . 1 Hover 2 | . 2 . Flight . | . . . Utility 2 | 1 1 . Device 1 | . 1 . Storage 1 | 1 . . Processor . | . . . Hackware . | . . . Protection . | . . . Artifact . | . . . Weapon 5 | 3 2 . Energy Gun 3 | 2 1 . Energy Cannon . | . . . Ballistic Gun 1 | 1 . . Ballistic Cannon . | . . . Launcher 1 | . 1 . Special Weapon . | . . . Impact Weapon . | . . . Slashing Weapon . | . . . Piercing Weapon . | . . . Special Melee Weapon . | . . . Unidentified Prototypes . | . . . Parts Lost 7 | . 2 5 Power 1 | . . 1 Propulsion 3 | . 1 2 Utility . | . . . Weapon 3 | . 1 2 Highest Loss Streak 2 | . 1 2 To Critical Strikes . | . . . Average Backups 4 | 1 4 6 Power . | . 1 1 Propulsion . | . . . Utility 1 | . 1 2 Weapon 2 | . 2 3 Tool/Special . | . . . Unused Backups 6 | . 1 5 Power 2 | . 1 1 Propulsion . | . . . Utility 2 | . . 2 Weapon 2 | . . 2 Tool/Special . | . . . Average Slot Usage (%) 94 | . 96 85 Engine 14 | . 14 14 Leg 14 | . 17 . Hover 10 | . 9 13 Device 12 | . 11 14 Storage 14 | . 14 14 Energy Gun 25 | . 26 16 Ballistic Gun 1 | . . 9 Launcher 1 | . 1 . Peak Build Rating 11 | 6 11 10 Average Rating 9 | 4 9 8 On Entrance 5 | . 6 10 Avg Prop Armor Cover (%) 8 | . 8 . Naked Turns . | . . . Heaviest Build 17 | 14 17 17 Greatest Support 20 | 20 20 12 Greatest Overweight (x) 5 | . 2 5 Average Overweight (x) . | . . 1 Largest Inventory Capacity 8 | 8 8 8 Average Capacity 7 | 6 8 8 Most Carried 8 | 2 8 8 Average Carried 4 | 1 4 6 Final Capacity 8 | 8 8 8 Final Carried 7 | 2 7 5 Class Distribution -------------------- 62% | Mutant 37% | Scavenger-Mutant Dominant Class ---------------- Mutant | -10/Materials Scavenger-Mutant | -10/Mines Resources | -11 -10 -10 ----------- Run | Yrd Mat Min Matter Collected 500 | 270 147 83 Remotely . | . . . Salvage Created 495 | . 381 114 Parts 27 | . 25 2 Haulers Intercepted 1 | . 1 . Recyclers Shooed . | . . . Parts Field Recycled . | . . . Retrieved Matter . | . . . Parts Self-Destructed . | . . . Prevented . | . . . Parts Restored . | . . . Kills | -11 -10 -10 ------- Run | Yrd Mat Min Combat Hostiles Destroyed 21 | . 10 11 Guns 12 | . 5 7 AOE 9 | . 5 4 Classes Destroyed 8 | . 6 2 Worker 1 | . 1 . Tunneler 1 | . . 1 Hauler 1 | . 1 . Operator 1 | . 1 . Watcher 2 | . 2 . Swarmer 6 | . 6 . Grunt 4 | . 4 . Assembled 11 | . . 11 Best Kill Streak 11 | . 3 11 Combat Bots Only 11 | . 3 11 Max Kills in Single Turn 4 | . 2 4 Gunslinging . | . . . Exploded 4 | . 2 4 Melee . | . . . Uniques/NPCs Destroyed . | . . . Combat | -11 -10 -10 -------- Run | Yrd Mat Min Hostile Shots Fired 80 | . 57 23 Missed 22 | . 20 2 Hits 58 | . 37 21 Melee 2 | . . 2 Projectile 56 | . 37 19 Damage Taken 820 | . 491 329 Core 252 | . 145 107 Absorbed by Shields . | . . . Core Remaining (%) 100 | 100 . . Volleys Fired 56 | . 37 19 Largest 2 | . 2 2 Hottest 105 | . 105 85 Shots Fired 104 | . 68 36 Gun 97 | . 62 35 Cannon . | . . . Launcher 7 | . 6 1 Special . | . . . Kinetic 17 | . . 17 Thermal 42 | . 25 17 Explosive 7 | . 6 1 Electromagnetic 38 | . 37 1 Robot Hit Streak 8 | . 8 4 Robot Miss Streak 9 | . 9 3 Penetration Max . | . . . Secondary Targets . | . . . Shots Hit Robots 56 | . 39 17 Core Hits 46 | . 23 23 Critical Kills . | . . . Critical Parts Destroyed . | . . . Critical Strikes 1 | . 1 . Burn 1 | . 1 . Melee Attacks . | . . . Impact . | . . . Slashing . | . . . Piercing . | . . . Sneak Attacks . | . . . Combat Hostiles . | . . . Follow-up Attacks . | . . . Damage Inflicted 1364 | . 911 453 Guns 808 | . 574 234 Cannons . | . . . Explosions 543 | . 324 219 Melee . | . . . Ramming 13 | . 13 . Kinetic 76 | . . 76 Thermal 434 | . 286 148 Explosive 478 | . 259 219 Electromagnetic 363 | . 353 10 Impact . | . . . Slashing . | . . . Piercing . | . . . Highest Corruption 1 | . 1 1 Average Corruption 1 | . 1 1 Corruption Purged . | . . . Corruption Blocked . | . . . Effects 10 | . 6 4 Message Errors 2 | . 1 1 Matter Fused 2 | . 2 . Heat Flow Errors 1 | . 1 . Energy Discharges 2 | . . 2 Misfires 1 | . 1 . Alerts 1 | . 1 . Weapon Failures 1 | . . 1 Overload Shots . | . . . Overflow Damage 24 | . 24 . Projectiles . | . . . Explosions 24 | . 24 . Melee . | . . . Knockbacks . | . . . Impact . | . . . Kinetic . | . . . Secondary . | . . . Self-Inflicted Damage 138 | . 138 . Shots 4 | . 4 . Rammed . | . . . Targets Rammed 6 | . 6 . Kicked 6 | . 6 . Crushed . | . . . Highest Temperature 269 | . 269 36 Average Temperature 36 | . 39 16 Received Heat Transfer 124 | . 84 40 Siege Activations . | . . . Martial Activations . | . . . Shielding Activations . | . . . Robots Disrupted . | . . . Combat Hostiles . | . . . Robots Corrupted . | . . . Combat Hostiles . | . . . Parts Fried 1 | . 1 . Impact Corruptions . | . . . Robots Melted . | . . . Combat Hostiles . | . . . Parts Melted . | . . . Heat Transferred 1062 | . 729 333 Parts Sabotaged . | . . . Parts Stolen . | . . . Parts Stripped . | . . . Power Chain Reactions 2 | . 2 . Alert | -11 -10 -10 ------- Run | Yrd Mat Min Maximum Alert Level 1 | . 1 . Low Security (%) 87 | 100 84 100 Level 1 12 | . 15 . Level 2 . | . . . Level 3 . | . . . Level 4 . | . . . Level 5 . | . . . High Security . | . . . Max Security . | . . . Peak Influence 247 | . 247 45 Initial 45 | . . 45 Average 86 | . 104 14 Influence Increases 503 | . 490 13 Destroy 0b10 Robot/C 200 | . 200 . Destroy 0b10 Robot/NC 30 | . 25 5 Destroy Leader 56 | . 56 . Successful Hack 43 | . 43 . Disable Machine 90 | . 90 . Destroy Structure 69 | . 61 8 Lose Combat Pursuer 15 | . 15 . Influence Decreases 503 | . 372 131 Entered New Map 73 | . . 73 Time Decay 387 | . 352 35 Lost Part 43 | . 20 23 Squads Dispatched 2 | . 2 . Investigation 2 | . 2 . Extermination . | . . . Reinforcement . | . . . Assault . | . . . Garrison . | . . . Intercept . | . . . Searches Triggered . | . . . Construction Impeded . | . . . Haulers Reinforced . | . . . Active Scanning Responses . | . . . Cargo Convoy Interrupts . | . . . Stealth | -11 -10 -10 --------- Run | Yrd Mat Min Distress Signals 1 | . 1 . Communications Jammed . | . . . Distress Signals . | . . . Times Spotted 38 | . 17 21 Peak Tracking Total 17 | . 4 17 Tactical Retreats 3 | . 1 2 Traps | -11 -10 -10 ------- Run | Yrd Mat Min Traps Triggered 1 | . 1 . Indirectly . | . . . Trap Hack Attempts . | . . . Triggered . | . . . Disarmed . | . . . Reprogrammed . | . . . Reused . | . . . Traps Extracted . | . . . Installed . | . . . Triggered . | . . . Machines | -11 -10 -10 ---------- Run | Yrd Mat Min Machines Disabled 6 | . 6 . Max in Single Turn 2 | . 2 . Machines Repaired . | . . . Machines Dismantled . | . . . Machines Sabotaged . | . . . Overloaded Fab Kills . | . . . Hacking | -11 -10 -10 --------- Run | Yrd Mat Min Machines Accessed 7 | . 7 . Terminals 6 | . 6 . Fabricators . | . . . Repair Stations . | . . . Recycling Units 1 | . 1 . Scanalyzers . | . . . Garrison Access . | . . . Total Hacks 27 | . 27 . Successful 13 | . 13 . Failed 14 | . 14 . Catastrophic 1 | . 1 . Database Lockouts . | . . . Manual 19 | . 19 . Terminals 26 | . 26 . Fabricators . | . . . Repair Stations . | . . . Recycling Units 1 | . 1 . Scanalyzers . | . . . Garrison Access . | . . . Terminal Hacks 11 | . 11 . Prototype ID Bank 1 | . 1 . Branch Access Points 1 | . 1 . Emergency Access Points 1 | . 1 . Terminal Index 1 | . 1 . Locate Traps 1 | . 1 . Dispatch Records 1 | . 1 . Patrol Status 1 | . 1 . Registered Components 1 | . 1 . Zone Layout 3 | . 3 . Fabricator Hacks . | . . . Repair Station Hacks . | . . . Recycling Unit Hacks 1 | . 1 . Report Inventory 1 | . 1 . Scanalyzer . | . . . Garrison Access Hacks . | . . . Unauthorized Hacks 1 | . 1 . Terminals 1 | . 1 . Botnet 1 | . 1 . Fabricators . | . . . Repair Stations . | . . . Recycling Units . | . . . Scanalyzers . | . . . Garrison Access . | . . . Data Cores Recovered 1 | . 1 . Used . | . . . Hacking Detections 7 | . 7 . Full Trace Events 4 | . 4 . Feedback Events 1 | . 1 . Corruption 1 | . 1 . Feedback Blocked . | . . . Robot Schematics Acquired . | . . . Robots Built . | . . . Authchips . | . . . Time . | . . . Total Robot Build Rating . | . . . Part Schematics Acquired . | . . . Parts Built . | . . . Authchips . | . . . Time . | . . . Total Part Build Rating . | . . . Part Studies Acquired . | . . . Parts Repaired . | . . . Time . | . . . Parts Recycled . | . . . Recycled Matter . | . . . Retrieved Matter . | . . . Retrieved Components . | . . . Parts Scanalyzed . | . . . Part Schematics Acquired . | . . . Parts Damaged . | . . . Bothacking | -11 -10 -10 ------------ Run | Yrd Mat Min Used RIF Installer . | . . . Robots Hacked . | . . . Non-combat . | . . . Combat . | . . . Robot Hacks Applied . | . . . Relay Couplers Released . | . . . Fabnet Peak Effective % . | . . . Robots Rewired . | . . . Allies Hacked . | . . . Hacks Repelled . | . . . Allies | -11 -10 -10 -------- Run | Yrd Mat Min Total Allies . | . . . Largest Group . | . . . Highest-Rated Group . | . . . Highest-Rated Ally . | . . . Total Orders . | . . . Ally Attacks . | . . . Total Damage . | . . . Kills . | . . . Allies Corrupted . | . . . Allies Melted . | . . . Intel | -11 -10 -10 ------- Run | Yrd Mat Min Active Infowar (turns) . | . . . Robot Analysis Total . | . . . Derelict Logs Recovered 1 | . . 1 Drone Launches . | . . . Drone Recoveries . | . . . Exploration | -11 -10 -10 ------------- Run | Yrd Mat Min Turns Passed 1154 | 62 940 152 Spaces Moved 714 | 44 618 52 Core 13 | 3 . 10 Treads . | . . . Legs 411 | 41 370 . Wheels 12 | . . 12 Hover 278 | . 248 30 Flight . | . . . Fastest Speed 50 | 50 116 56 Average Speed 121 | 115 121 137 Slowest Speed 300 | 120 190 300 Overloaded Moves . | . . . Propulsion Burnouts . | . . . Robots Hopped . | . . . Potential Cave-ins . | . . . Cave-ins Triggered . | . . . Exploration Rate (%) 30 | 3 79 9 Regions Visited 2 Branch Regions 1 Pre-discovered Areas 1 | . . 1 Known Exits Taken 1 | . 1 . Unknown Exits Taken 1 | 1 . . Scrap Searched . | . . . Spaces Dug . | . . . Terrain Destroyed 69 | . 61 8 Melee . | . . . Projectile . | . . . AOE 69 | . 61 8 Terrain Rammed . | . . . Walls Destroyed . | . . . Machines Disabled . | . . . Actions | -11 -10 -10 --------- Run | Yrd Mat Min Total 885 | 52 738 95 Wait 77 | . 59 18 Move 712 | 43 617 52 Hop . | . . . Pick Up 9 | 2 7 . Fast Attach 10 | 6 3 1 Attach 3 | . . 3 Detach 1 | . . 1 Swap 8 | 1 6 1 Drop 3 | . 3 . Fire 56 | . 37 19 Melee . | . . . Ram . | . . . Kick 6 | . 6 . Crush . | . . . Escape Stasis . | . . . Rewire . | . . . Trap . | . . . Miscellaneous . | . . . Route ------- -11/Scrapyard -10/Materials (discovered 3 exits: [*Mat x2] / *Min) -10/Mines History --------- Turn | Location | Event 6 | -11/Scrapyard | Discovered new exit (range 14) 63 | -11/Scrapyard | Entered Materials 143 | -10/Materials | Discovered new exit (range 15) 302 | -10/Materials | Build established: Mutant 446 | -10/Materials | Identified exit to Mines 606 | -10/Materials | Core integrity fell below 50% 696 | -10/Materials | Discovered new exit (range 15) 827 | -10/Materials | Discovered new exit (range 7) 958 | -10/Materials | Build established: Scavenger-Mutant 1003 | -10/Materials | Entered Mines 1004 | -10/Mines | Assembled infested the area 1009 | -10/Mines | Assisted by a Guerilla fighting off Assembled 1037 | -10/Mines | Learned location of Zion (-6) 1078 | -10/Mines | Core integrity fell below 20% 1106 | -10/Mines | Destroyed 11 combat bots 1155 | -10/Mines | Destroyed by as-69566 with Assembled Heavy Rifle Last Messages --------------- 01069_ Hover Unit destroyed. 01070_ as-36714 destroyed. 01071_ Acquired 12 matter. 01072_ Hover Unit destroyed. 01073_ T-07 Excavator is excavating. 01073_ as-89102 destroyed. 01076_ as-80946 destroyed. 01077_ T-07 Excavator is excavating. 01082_ System corrupted: Assault Rifle jammed. 01085_ T-07 Excavator is excavating. 01085_ as-97888 destroyed. 01086_ Acquired 7 matter. 01098_ T-07 Excavator is excavating. 01115_ T-07 Excavator destroyed. 01123_ System corrupted: Energy discharge (-82). 01127_ Acquired 25 matter. 01133_ Acquired Wheel. 01150_ Acquired 30 matter. 01151_ Particle Gun destroyed. 01153_ Ion Engine destroyed. Map ----- +----------------------------------------------------+ | | | | | | | | | | | | | | | ??????????????????????????????????????????? | | ?????????????????????????####?????????????? | | ????????????????????????## ##????????????? | | ????????????????????????# ##???????????? | | ????????????????????????# ####????????? | | ????????????????????????# ###??????? | | ????????????????????????## """ ##?????? | | ????????????????????????## """ #?????? | | ??????????????????????### """ #?????? | | ??????????????????##### """ ##?????? | | ????????????????? % % %]% #??????? | | ????????????????? % %% % #??????? | | ????????????? ## ## ## #??????? | | ????????????#????????# ?### ##??????? | | ?????????????????????#?????## ##???????? | | ????????????????????????????## ##????????? | | ?????????????????????????????# #?????????? | | ????????????????????????###### #?????????? | | ????????????????????????#@ aa #?????????? | | ????????????????????????#%#######?????????? | | ????????????????????????# #???????????????? | | ????????????????????????# ##??????????????? | | ???????????????????????## ##?????????????? | | ??????????????????????## #?????????????? | | ???????????????????#### ##?????????????? | | ???????????????????# | ##??????????????? | | ???????????????????## ###???????????????? | | ????????????????????#####?????????????????? | | ??????????????????????????????????????????? | | ??????????????????????????????????????????? | | ??????????????????????????????????????????? | | ??????????????????????????????????????????? | | ??????????????????????????????????????????? | | ??????????????????????????????????????????? | | ??????????????????????????????????????????? | | ??????????????????????????????????????????? | | ??????????????????????????????????????????? | | ??????????????????????????????????????????? | | ??????????????????????????????????????????? | | ??????????????????????????????????????????? | | ??????????????????????????????????????????? | | ??????????????????????????????????????????? | | ??????????????????????????????????????????? | +----------------------------------------------------+ Best States ------------- Heat Dissipation 39 Energy Generation 10 Energy Capacity 250 Matter Stores 300 Matter Capacity 300 Sight Range 16 Terrain Scan Density 10 Evasion (%) 55 Item Schematics ----------------- None Robot Schematics ------------------ None Fabricated ------------ Nothing Repaired ---------- Nothing Studied --------- None Alien Tech Used ----------------- None Achievements -------------- None Challenges ------------ None Game ------ Seed TimingDefenseBrace Manual? 0 Play Time 00:14:51 Cumulative 94.3 hours Start 2026.01.11 @ 17:29:34 End 2026.01.11 @ 17:42:22 Sessions 1 Manual Loads 0 Difficulty Rogue Special Mode None Game No. 44 Rogue 41 Adventurer 3 Explorer 0 Win Type - Total 1 Types 1/0/0/0/0/0/0/0/0/0 Lore% 26 Gallery% 44 Achievement% 33 Wizard Run 0 Options --------- Layout 1 ASCII 0 Keyboard 0 Movement Numpad Keybinds 0 Fullscreen 1 Font 24/Smallcaps Map View 50x35 Zoom Use 0% Tactical HUD 1 Map Filters NONE Filters NONE Steam 1 RUN: 582478d9-adb8-4034-aa66-248ba45e5bb8